bitfinex/quotes_SOLUSD_20251216
["timestamp","ask_amount","ask_price","bid_price","bid_amount"]
[1765888584338,3.50379818,128.44,128.43,0.2]
[1765888584546,3.50379818,128.44,128.43,9.00994492]
[1765888584768,3.50379818,128.44,128.43,0.2]
[1765888584952,0.71,128.44,128.43,0.2]
[1765888585264,2.79379818,128.44,128.43,0.2]
[1765888585461,3.50379818,128.44,128.43,0.2]
[1765888587569,11.28953471,128.44,128.43,0.2]
[1765888592471,7.78573653,128.44,128.43,9.00994492]
[1765888592666,10.57953471,128.44,128.43,9.00994492]
[1765888592851,11.28953471,128.44,128.43,9.00994492]
[1765888596367,11.28953471,128.44,128.43,0.2]
[1765888596571,0.71,128.43,128.39,0.2]
[1765888596778,3.50379818,128.4,128.39,9.00994492]
[1765888597259,3.50379818,128.4,128.39,0.2]
[1765888598357,11.29196017,128.4,128.39,0.2]
[1765888598670,11.29196017,128.4,128.37,9.00994492]
[1765888598872,9.25,128.39,128.37,9.71994492]
[1765888599174,12.04379818,128.39,128.37,9.71994492]
[1765888599370,11.33379818,128.39,128.37,9.71994492]
[1765888600856,8.54,128.39,128.38,0.71]
[1765888601374,8.54,128.42,128.41,8.80994492]
[1765888601769,8.54,128.42,128.41,9.51994492]
[1765888601975,7.78524171,128.45,128.43,8.80994492]
[1765888602156,8.54,128.44,128.43,9.51994492]
[1765888603182,8.54,128.44,128.42,0.71]
[1765888603482,11.33379818,128.44,128.42,0.71]
[1765888603880,0.71,128.43,128.4,0.71]
[1765888604174,3.50379818,128.43,128.4,9.51994492]
[1765888604684,2.79379818,128.43,128.41,0.71]
[1765888604856,3.50379818,128.43,128.4,9.51994492]
[1765888605185,2.79379818,128.43,128.41,0.71]
[1765888605673,17.03604212,128.44,128.41,0.71]
[1765888605674,19.1198403,128.44,128.41,0.71]
[1765888606076,19.8298403,128.44,128.41,0.71]
[1765888606779,19.1198403,128.44,128.41,0.71]
[1765888606973,19.1198403,128.44,128.43,9.51994492]
[1765888606974,8.54,128.44,128.43,9.51994492]
[1765888607484,8.54,128.46,128.44,0.71]
[1765888608858,8.54,128.46,128.45,0.71]
[1765888609055,8.54,128.46,128.44,0.71]
[1765888609571,19.11852208,128.46,128.43,8.80994492]
[1765888609889,19.82852208,128.46,128.43,9.51994492]
[1765888610184,19.11852208,128.46,128.45,8.80994492]
[1765888612464,19.11852208,128.46,128.43,8.80994492]
[1765888612465,16.3247239,128.46,128.43,8.80994492]
[1765888612670,16.3247239,128.46,128.42,10.58073984]
[1765888612671,16.3247239,128.46,128.45,8.80994492]
[1765888612990,8.54,128.46,128.45,8.80994492]
[1765888615001,9.25,128.46,128.45,8.80994492]
[1765888615301,8.54,128.46,128.45,8.80994492]
[1765888615681,8.54,128.46,128.45,0.71]
[1765888616902,8.54,128.46,128.44,8.80994492]
[1765888617109,19.82849943,128.46,128.43,9.51994492]
[1765888617284,19.11849943,128.46,128.44,0.71]
[1765888618110,19.11849943,128.46,128.45,8.80994492]
[1765888618306,19.82849943,128.46,128.45,8.80994492]
[1765888618504,19.11849943,128.46,128.44,61.9]
[1765888618679,3.50379818,128.45,128.44,70.70994492]
[1765888619694,16.32470125,128.46,128.44,70.70994492]
[1765888619883,2.79379818,128.45,128.44,70.70994492]
[1765888620085,3.50379818,128.45,128.44,70.70994492]
[1765888620504,17.03470125,128.46,128.44,70.70994492]
[1765888620690,8.54,128.46,128.45,9.51994492]
[1765888621090,2.79379818,128.49,128.45,70.70994492]
[1765888621091,10.57688216,128.49,128.45,70.70994492]
[1765888621296,8.54,128.48,128.47,0.71]
[1765888622012,8.54,128.5,128.47,0.71]
[1765888622385,12.04379818,128.5,128.47,0.71]
[1765888623105,9.25,128.5,128.47,0.71]
[1765888623306,12.04379818,128.5,128.47,0.71]
[1765888623797,8.54,128.5,128.49,0.72]
[1765888624186,8.54,128.5,128.48,9.52994492]
[1765888624589,8.54,128.5,128.49,0.72]
[1765888625420,8.54,128.5,128.49,9.52994492]
[1765888626541,8.54,128.52,128.51,9.52994492]
[1765888627533,8.54,128.52,128.51,8.80994492]
[1765888627836,8.54,128.52,128.51,9.52994492]
[1765888629996,8.54,128.52,128.51,17.31144052]
[1765888632914,8.54,128.52,128.51,9.52994492]
[1765888633648,8.54,128.52,128.51,8.80994492]
[1765888633949,12.90505611,128.52,128.51,8.80994492]
[1765888634538,20.68594624,128.52,128.51,8.80994492]
[1765888634838,20.68594624,128.52,128.48,61.9]
[1765888635007,4.36505611,128.5,128.49,8.80994492]
[1765888638636,20.68594624,128.52,128.51,8.80994492]
[1765888638842,21.34594624,128.52,128.51,8.80994492]
[1765888639632,0.66,128.51,128.5,70.70994492]
[1765888639854,5.02505611,128.51,128.5,70.70994492]
[1765888640744,4.36505611,128.51,128.5,70.70994492]
[1765888641447,5.02505611,128.51,128.5,70.70994492]
[1765888642051,16.98089013,128.52,128.51,8.80994492]
[1765888642240,21.34594624,128.52,128.51,8.80994492]
[1765888643361,13.56505611,128.52,128.51,8.80994492]
[1765888643532,8.54,128.52,128.51,9.52994492]
[1765888643934,8.54,128.52,128.51,8.80994492]
[1765888644563,21.34594624,128.52,128.51,8.80994492]
[1765888644859,0.66,128.51,128.48,61.9]
[1765888645154,0.66,128.48,128.44,62.62]
[1765888645362,4.36505611,128.46,128.43,8.50614747]
[1765888645573,9.2,128.47,128.44,17.31553138]
[1765888645742,12.90505611,128.47,128.45,0.72]
[1765888649265,8.54,128.47,128.45,0.72]
[1765888649432,12.90505611,128.47,128.45,0.72]
[1765888649959,8.54,128.47,128.46,9.52994492]
[1765888650767,8.54,128.47,128.46,70.70994492]
[1765888651538,12.90505611,128.47,128.46,70.70994492]
[1765888651758,13.56505611,128.47,128.46,70.70994492]
[1765888651965,8.54,128.47,128.46,71.42994492]
[1765888652335,8.54,128.47,128.46,70.70994492]
[1765888655062,21.35897453,128.47,128.46,70.70994492]
[1765888656663,21.35897453,128.47,128.46,61.9]
[1765888656842,0.67,128.46,128.45,8.80994492]
[1765888657041,5.03505611,128.46,128.45,8.80994492]
[1765888658746,12.81958047,128.46,128.45,8.80994492]
[1765888660968,8.45452436,128.46,128.45,8.80994492]
[1765888661144,4.36505611,128.46,128.45,9.47994492]
[1765888661345,4.36505611,128.46,128.45,8.80994492]
[1765888661548,4.36505611,128.46,128.45,9.47994492]
[1765888661851,20.68910273,128.47,128.45,9.47994492]
[1765888662267,4.36505611,128.46,128.45,8.80994492]
[1765888662773,4.36505611,128.46,128.45,70.70994492]
[1765888662939,16.32404662,128.47,128.45,70.70994492]
[1765888663141,12.90505611,128.47,128.46,0.67]
[1765888663769,12.90505611,128.47,128.45,71.37994492]
[1765888664579,8.54,128.47,128.46,9.47994492]
[1765888666393,8.54,128.47,128.46,17.26446928]
[1765888666548,8.54,128.5,128.48,0.67]
[1765888666755,9.21,128.5,128.48,8.80994492]
[1765888666953,12.90505611,128.5,128.48,9.47994492]
[1765888667979,8.54,128.5,128.48,9.47994492]
[1765888668359,12.90505611,128.5,128.48,9.47994492]
[1765888668760,8.54,128.5,128.49,0.67]
[1765888668985,12.90505611,128.5,128.48,8.80994492]
[1765888669182,20.68743405,128.5,128.48,9.47994492]
[1765888669994,12.90505611,128.5,128.48,9.47994492]
[1765888671601,12.90505611,128.5,128.48,71.37994492]
[1765888671767,20.68718212,128.5,128.48,71.37994492]
[1765888671971,21.35718212,128.5,128.48,70.70994492]
[1765888672792,16.99212601,128.5,128.48,70.70994492]
[1765888672974,20.68718212,128.5,128.48,71.37994492]
[1765888674106,12.90505611,128.5,128.48,71.37994492]
[1765888676781,8.54,128.5,128.48,71.37994492]
[1765888677087,12.90505611,128.5,128.48,71.37994492]
[1765888677270,8.54,128.5,128.48,71.37994492]
[1765888677472,12.90505611,128.5,128.48,71.37994492]
[1765888677775,20.68715805,128.5,128.48,71.37994492]
[1765888678893,21.35715805,128.5,128.48,71.37994492]
[1765888680586,5.03505611,128.49,128.48,8.80994492]
[1765888681498,5.03505611,128.49,128.47,8.80994492]
[1765888681499,0.67,128.48,128.47,8.80994492]
[1765888681676,0.67,128.48,128.46,61.9]
[1765888681677,0.67,128.47,128.45,61.9]
[1765888681885,13.57505611,128.46,128.45,70.70994492]
[1765888682097,13.57505611,128.46,128.45,8.80994492]
[1765888685279,12.90505611,128.46,128.45,8.80994492]
[1765888685484,13.55505611,128.46,128.45,8.80994492]
[1765888687093,21.33958047,128.46,128.45,8.80994492]
[1765888688998,20.68958047,128.46,128.45,8.80994492]
[1765888689537,19.77204599,128.46,128.45,8.80994492]
[1765888690205,0.65,128.45,128.44,8.80994492]
[1765888690400,3.44752163,128.45,128.44,8.80994492]
[1765888691116,2.79752163,128.45,128.44,8.80994492]
[1765888691722,2.79795369,128.45,128.44,8.80994492]
[1765888692322,10.58308409,128.45,128.44,8.80994492]
[1765888693624,11.23308409,128.45,128.44,8.80994492]
[1765888694209,2.79795369,128.45,128.44,8.80994492]
[1765888694412,3.44795369,128.45,128.44,8.80994492]
[1765888695132,2.79795369,128.45,128.44,8.80994492]
[1765888695828,2.79795369,128.45,128.44,9.51994492]
[1765888696136,2.79795369,128.45,128.44,8.80994492]
[1765888696430,2.79795369,128.45,128.44,9.51994492]
[1765888696620,16.32463796,128.46,128.44,9.51994492]
[1765888696821,2.79795369,128.45,128.44,9.51994492]
[1765888697324,2.79795369,128.45,128.44,8.80994492]
[1765888698333,2.79795369,128.45,128.44,70.70994492]
[1765888699900,16.97463796,128.46,128.44,70.70994492]
[1765888700105,2.79795369,128.45,128.44,71.41994492]
[1765888700326,16.97463796,128.46,128.44,71.41994492]
[1765888700527,2.79795369,128.45,128.44,71.41994492]
[1765888702027,2.79795369,128.45,128.44,70.70994492]
[1765888703934,0.65,128.51,128.45,0.71]
[1765888704229,8.54,128.49,128.48,9.51994492]
[1765888705009,0.65,128.53,128.48,9.51994492]
[1765888705010,8.54,128.51,128.48,0.71]
[1765888705209,8.54,128.51,128.5,17.30204608]
[1765888705932,8.54,128.51,128.5,9.51994492]
[1765888706341,13.0470912,128.57,128.51,0.71]
[1765888706342,0.65,128.57,128.51,0.71]
[1765888706504,0.65,128.57,128.53,0.71]
[1765888706505,10.57581788,128.57,128.53,0.71]
[1765888706704,10.57581788,128.57,128.52,11.60789861]
[1765888706705,8.54,128.56,128.54,8.80994492]
[1765888707242,8.54,128.56,128.54,9.51994492]
[1765888708298,19.11649889,128.56,128.54,8.80994492]
[1765888708606,3.44795369,128.55,128.52,9.51994492]
[1765888709138,2.79795369,128.55,128.54,8.80994492]
[1765888709732,3.44795369,128.55,128.51,7.78098475]
[1765888709932,2.79795369,128.55,128.53,8.80994492]
[1765888710137,2.79795369,128.54,128.53,9.51994492]
[1765888710967,2.79795369,128.55,128.53,9.51994492]
[1765888711840,9.19,128.56,128.53,9.51994492]
[1765888712044,8.54,128.56,128.55,8.80994492]
[1765888712374,10.57538499,128.58,128.55,8.80994492]
[1765888712375,8.54,128.58,128.56,0.71]
[1765888712564,8.54,128.58,128.57,9.51994492]
[1765888713625,0.1,128.59,128.58,9.45994492]
[1765888715857,0.1,128.59,128.58,17.23720421]
[1765888719056,0.1,128.59,128.58,9.45994492]
[1765888719241,0.1,128.59,128.58,71.35994492]
[1765888720961,0.1,128.59,128.58,79.13720421]
[1765888722739,0.1,128.59,128.58,70.70994492]
[1765888723069,0.1,128.59,128.58,71.35994492]
[1765888723872,0.1,128.59,128.58,79.13720421]
[1765888730378,0.1,128.59,128.58,70.70994492]
[1765888730556,0.1,128.59,128.58,71.35994492]
[1765888730987,0.1,128.59,128.58,9.45994492]
[1765888731181,3.56795369,128.59,128.58,8.80994492]
[1765888731380,0.1,128.59,128.58,9.45994492]
[1765888731759,0.1,128.59,128.58,17.23720421]
[1765888732687,0.1,128.59,128.58,9.45994492]
[1765888734069,0.77,128.59,128.58,8.80994492]
[1765888734266,0.1,128.59,128.58,8.80994492]
[1765888734873,0.1,128.59,128.58,17.23720421]
[1765888735074,0.1,128.59,128.58,9.45994492]
[1765888735283,0.1,128.59,128.58,17.23720421]
[1765888736366,0.1,128.59,128.58,9.45994492]
[1765888736570,0.1,128.59,128.58,8.80994492]
[1765888736972,0.1,128.59,128.58,79.13720421]
[1765888739188,0.1,128.59,128.58,81.9351579]
[1765888739888,0.1,128.59,128.58,103.5022491]
[1765888740095,0.1,128.59,128.58,106.30020279]
[1765888740286,0.1,128.61,128.6,22.50703612]
[1765888740464,0.1,128.61,128.6,25.30498981]
[1765888741069,0.1,128.61,128.6,33.08103957]
[1765888741290,0.1,128.61,128.6,17.23599468]
[1765888741995,0.1,128.61,128.6,8.80994492]
[1765888741996,3.56795369,128.61,128.6,8.80994492]
[1765888742700,0.77,128.61,128.6,8.80994492]
[1765888742879,3.56795369,128.61,128.6,8.80994492]
[1765888743700,10.67339883,128.61,128.6,8.80994492]
[1765888743902,11.39339883,128.61,128.6,8.80994492]
[1765888744400,10.67339883,128.61,128.6,8.80994492]
[1765888745297,11.39339883,128.61,128.6,8.80994492]
[1765888745503,11.39339883,128.61,128.6,9.46994492]
[1765888745504,0.1,128.61,128.6,9.46994492]
[1765888745705,0.1,128.61,128.6,8.80994492]
[1765888745887,0.1,128.61,128.6,70.70994492]
[1765888746484,0.1,128.61,128.6,71.36994492]
[1765888746692,0.1,128.61,128.6,70.70994492]
[1765888755914,0.72,128.6,128.58,8.80994492]
[1765888756219,13.59963073,128.59,128.57,8.80994492]
[1765888757912,13.60199355,128.59,128.57,8.80994492]
[1765888758633,4.36199355,128.6,128.57,16.58772699]
[1765888758835,8.52,128.59,128.58,9.46994492]
[1765888759846,8.52,128.59,128.58,17.24720421]
[1765888760144,8.62,128.61,128.59,9.46994492]
[1765888760716,0.1,128.61,128.6,0.66]
[1765888760951,8.62,128.61,128.6,0.66]
[1765888763542,0.72,128.6,128.59,8.80994492]
[1765888763928,12.98199355,128.61,128.59,8.80994492]
[1765888764251,13.70199355,128.61,128.59,8.80994492]
[1765888764613,0.72,128.6,128.59,8.80994492]
[1765888766854,0.72,128.6,128.59,70.70994492]
[1765888767147,12.85804331,128.6,128.59,70.70994492]
[1765888769452,5.08199355,128.6,128.59,70.70994492]
[1765888769749,13.70199355,128.61,128.6,8.80994492]
[1765888770147,8.62,128.61,128.6,8.80994492]
[1765888772756,8.62,128.61,128.6,70.70994492]
[1765888774442,0.7,128.6,128.58,8.80994492]
[1765888774641,5.06199355,128.6,128.58,8.80994492]
[1765888777657,0.68,128.59,128.58,8.80994492]
[1765888777952,0.68,128.58,128.57,8.80994492]
[1765888778159,9.2,128.58,128.56,8.80994492]
[1765888778559,8.52,128.58,128.56,9.52994492]
[1765888779143,9.2,128.58,128.56,8.80994492]
[1765888779343,13.56199355,128.58,128.56,8.80994492]
[1765888779653,9.2,128.58,128.56,8.80994492]
[1765888779859,8.52,128.58,128.56,17.30834177]
[1765888780046,9.2,128.58,128.56,17.30834177]
[1765888780247,9.2,128.58,128.56,8.80994492]
[1765888780738,8.52,128.58,128.56,16.5884075]
[1765888780942,9.2,128.58,128.56,16.5884075]
[1765888781146,8.52,128.58,128.57,0.72]
[1765888781540,8.52,128.58,128.57,71.42994492]
[1765888783560,8.52,128.58,128.57,70.70994492]
[1765888783763,8.52,128.58,128.57,71.42994492]
[1765888784649,8.52,128.58,128.57,79.20780911]
[1765888787799,8.52,128.58,128.57,70.70994492]
[1765888788768,9.2,128.58,128.57,70.70994492]
[1765888790387,9.2,128.58,128.57,8.80994492]
[1765888790998,9.2,128.58,128.55,8.80994492]
[1765888790999,0.68,128.57,128.55,8.80994492]
[1765888791167,4.36199355,128.57,128.55,8.80994492]
[1765888791492,5.04199355,128.56,128.55,8.80994492]
[1765888792259,5.04199355,128.56,128.53,8.80994492]
[1765888792260,0.68,128.55,128.53,8.80994492]
[1765888792489,8.52,128.54,128.52,9.52994492]
[1765888793696,9.2,128.54,128.52,8.80994492]
[1765888794200,13.56199355,128.54,128.52,8.80994492]
[1765888794386,0.68,128.52,128.51,8.80994492]
[1765888794693,0.68,128.52,128.5,8.80994492]
[1765888794866,8.52,128.51,128.5,8.80994492]
[1765888795267,8.52,128.51,128.5,9.52994492]
[1765888795569,8.52,128.51,128.5,17.31204608]
[1765888796173,8.52,128.51,128.5,9.52994492]
[1765888797172,8.52,128.51,128.5,8.80994492]
[1765888797372,8.52,128.51,128.5,9.52994492]
[1765888797869,8.52,128.51,128.5,17.31204608]
[1765888798491,9.2,128.51,128.5,8.80994492]
[1765888798793,0.68,128.51,128.5,8.80994492]
[1765888798968,8.52,128.51,128.5,8.80994492]
[1765888799579,8.52,128.51,128.48,0.72]
[1765888799778,8.52,128.51,128.49,8.80994492]
[1765888799779,4.36199355,128.5,128.49,8.80994492]
[1765888800081,0.68,128.49,128.46,9.00994492]
[1765888800402,8.52,128.48,128.47,9.52994492]
[1765888800778,8.46150645,128.51,128.5,8.80994492]
[1765888800981,16.98150645,128.51,128.5,8.80994492]
[1765888801168,16.98150645,128.51,128.48,9.52994492]
[1765888801363,8.52,128.52,128.48,70.70994492]
[1765888801563,8.52,128.52,128.51,9.52994492]
[1765888802000,8.52,128.52,128.51,17.31144052]
[1765888802168,8.52,128.52,128.51,9.52994492]
[1765888802670,8.52,128.53,128.52,9.52994492]
[1765888804389,12.79006991,128.57,128.53,0.68]
[1765888804569,8.52,128.56,128.54,8.80994492]
[1765888804774,8.52,128.56,128.54,9.48994492]
[1765888804974,8.52,128.56,128.54,8.80994492]
[1765888805192,8.52,128.56,128.55,9.48994492]
[1765888805493,8.52,128.56,128.55,8.80994492]
[1765888806295,13.53199355,128.56,128.55,8.80994492]
[1765888806697,21.31046274,128.56,128.55,8.80994492]
[1765888807070,0.65,128.55,128.51,8.80994492]
[1765888807292,21.31046274,128.56,128.52,8.46054159]
[1765888807474,4.36199355,128.56,128.53,17.27021397]
[1765888807677,8.52,128.55,128.53,8.80994492]
[1765888807877,8.52,128.55,128.53,9.48994492]
[1765888808195,0.65,128.54,128.51,0.68]
[1765888808399,13.53199355,128.55,128.52,0.68]
[1765888809300,21.31134918,128.55,128.52,0.68]
[1765888809904,16.94935563,128.55,128.52,0.68]
[1765888810087,8.52,128.55,128.54,8.80994492]
[1765888810487,9.17,128.55,128.54,8.80994492]
[1765888810888,21.31106784,128.55,128.54,8.80994492]
[1765888811507,9.17,128.55,128.54,8.80994492]
[1765888815101,11.96284912,128.55,128.54,8.80994492]
[1765888817323,9.17,128.55,128.54,8.80994492]
[1765888817523,8.52,128.55,128.54,8.80994492]
[1765888817832,8.52,128.55,128.54,9.48994492]
[1765888818030,8.52,128.55,128.54,71.38994492]
[1765888818736,8.52,128.55,128.54,70.70994492]
[1765888819035,8.52,128.55,128.54,71.38994492]
[1765888819825,8.52,128.55,128.54,79.16962439]
[1765888822617,8.52,128.55,128.54,71.38994492]
[1765888823947,16.29907429,128.55,128.54,70.70994492]
[1765888826054,19.74208308,128.55,128.54,70.70994492]
[1765888826427,11.96300879,128.55,128.54,70.70994492]
[1765888827127,11.31300879,128.55,128.54,70.70994492]
[1765888827723,8.52,128.55,128.54,70.70994492]
[1765888829050,19.74208308,128.55,128.54,8.80994492]
[1765888832156,16.94907429,128.55,128.54,8.80994492]
[1765888832522,19.74208308,128.55,128.54,8.80994492]
[1765888839834,16.94907429,128.55,128.54,8.80994492]
[1765888840034,19.74208308,128.55,128.54,8.80994492]
[1765888842168,19.09208308,128.55,128.52,61.9]
[1765888842368,19.09208308,128.55,128.53,8.80994492]
[1765888842369,0.69,128.54,128.53,8.80994492]
[1765888842541,3.48300879,128.54,128.53,8.80994492]
[1765888843362,11.26268826,128.54,128.53,8.80994492]
[1765888844171,8.46967947,128.54,128.53,8.80994492]
[1765888846363,16.29924527,128.55,128.53,9.49994492]
[1765888846558,19.78225406,128.55,128.53,8.80994492]
[1765888846870,19.78225406,128.55,128.53,9.49994492]
[1765888847673,19.78225406,128.55,128.53,8.80994492]
[1765888847876,16.98924527,128.55,128.53,8.80994492]
[1765888848053,19.78225406,128.55,128.53,9.49994492]
[1765888849471,19.78225406,128.55,128.53,8.80994492]
[1765888849979,19.09225406,128.55,128.54,9.49994492]
[1765888850484,19.09225406,128.55,128.54,8.80994492]
[1765888850778,19.78225406,128.55,128.54,8.80994492]
[1765888852282,19.09225406,128.55,128.54,8.80994492]
[1765888852459,19.78225406,128.55,128.54,8.80994492]
[1765888854178,19.09225406,128.55,128.54,8.80994492]
[1765888855569,19.78225406,128.55,128.54,8.80994492]
[1765888857784,19.09225406,128.55,128.54,8.80994492]
[1765888858589,7.77765635,128.58,128.54,78.48962439]
[1765888858767,8.52,128.59,128.57,0.69]
[1765888859081,19.08988141,128.59,128.57,0.69]
[1765888859560,2.79300879,128.58,128.55,9.49994492]
[1765888859765,11.31300879,128.57,128.55,9.49994492]
[1765888859982,8.52,128.57,128.55,9.49994492]
[1765888860292,8.52,128.57,128.55,2.79300879]
[1765888860585,8.52,128.57,128.56,9.49994492]
[1765888864964,8.52,128.57,128.56,8.80994492]
[1765888865164,9.2,128.57,128.56,8.80994492]
[1765888865483,8.52,128.57,128.56,9.48994492]
[1765888868468,8.52,128.57,128.56,8.80994492]
[1765888868670,8.52,128.57,128.56,9.48994492]
[1765888874920,0.2019954,128.6,128.57,8.80994492]
[1765888875131,5.04213581,128.59,128.57,8.80994492]
[1765888876114,12.81894469,128.59,128.57,8.80994492]
[1765888876294,4.36213581,128.58,128.57,8.80994492]
[1765888876942,12.81894469,128.59,128.57,8.80994492]
[1765888877097,5.04213581,128.58,128.57,8.80994492]
[1765888877297,5.04213581,128.58,128.55,9.48994492]
[1765888877600,8.52,128.57,128.56,0.68]
[1765888880859,8.52,128.57,128.56,0.68]
[1765888882235,8.52,128.57,128.55,9.48994492]
[1765888882543,0.68,128.56,128.55,70.70994492]
[1765888882740,0.68,128.55,128.54,8.80994492]
[1765888883037,13.56213581,128.55,128.54,8.80994492]
[1765888884740,21.3412101,128.55,128.54,8.80994492]
[1765888885144,21.3412101,128.55,128.53,8.80994492]
[1765888885145,0.68,128.54,128.53,8.80994492]
[1765888885332,5.04213581,128.54,128.53,8.80994492]
[1765888886834,16.29907429,128.55,128.53,0.68]
[1765888886835,8.52,128.55,128.53,0.68]
[1765888887033,8.52,128.55,128.52,8.80994492]
[1765888887034,0.68,128.54,128.52,8.80994492]
[1765888887224,0.68,128.54,128.51,9.48994492]
[1765888887548,13.56213581,128.55,128.52,0.68]
[1765888888139,9.2,128.55,128.53,0.68]
[1765888888339,9.2,128.55,128.52,7.78082189]
[1765888888340,13.56213581,128.55,128.52,8.46082189]
[1765888888931,9.2,128.55,128.53,0.68]
[1765888889252,8.52,128.55,128.53,9.48994492]
[1765888889550,8.52,128.55,128.54,0.68]
[1765888889757,8.52,128.55,128.54,8.80994492]
[1765888889931,8.52,128.55,128.54,9.48994492]
[1765888891420,8.52,128.55,128.54,71.38994492]
[1765888892235,8.52,128.55,128.54,79.16962439]
[1765888893350,8.52,128.58,128.56,8.80994492]
[1765888893550,8.52,128.58,128.57,9.52994492]
[1765888894050,8.52,128.58,128.57,75.79208073]
[1765888894348,8.7219954,128.6,128.58,9.49994492]
[1765888896658,8.7219954,128.6,128.58,17.27716014]
[1765888897138,8.7219954,128.6,128.58,17.17716014]
[1765888898241,8.7219954,128.6,128.59,0.69]
[1765888898444,8.7219954,128.6,128.58,79.07716014]
[1765888899929,8.7219954,128.6,128.59,9.49994492]
[1765888901931,8.7219954,128.6,128.59,17.2765994]
[1765888902452,8.7219954,128.6,128.59,21.63666257]
[1765888903251,0.2019954,128.6,128.59,21.63666257]
[1765888903843,0.1,128.61,128.6,9.49994492]
[1765888904064,0.1,128.61,128.6,13.86000809]
[1765888905840,0.1,128.61,128.6,21.63605785]
[1765888910554,0.1,128.61,128.6,83.53605785]
[1765888918957,0.78,128.61,128.6,70.70994492]
[1765888919268,5.14006317,128.61,128.6,8.80994492]
[1765888919502,0.78,128.61,128.6,8.80994492]
[1765888921858,0.78,128.61,128.59,7.77640734]
[1765888921859,0.68,128.6,128.56,0.69]
[1765888922052,0.68,128.6,128.57,9.49994492]
[1765888922760,8.62,128.61,128.59,0.69]
[1765888922968,8.62,128.61,128.59,13.86000809]
[1765888923572,8.62,128.61,128.59,13.17000809]
[1765888923769,0.1,128.61,128.6,21.62605785]
[1765888927102,0.1,128.61,128.6,83.52605785]
[1765888930998,0.76,128.61,128.6,78.48599468]
[1765888931295,0.76,128.61,128.6,70.70994492]
[1765888936701,12.07014458,128.61,128.6,70.70994492]
[1765888936873,19.84558972,128.61,128.6,70.70994492]
[1765888937310,0.66,128.6,128.57,61.9]
[1765888937484,3.45014458,128.59,128.58,8.80994492]
[1765888937806,0.66,128.58,128.57,8.80994492]
[1765888938001,3.45014458,128.58,128.57,8.80994492]
[1765888938174,2.79014458,128.58,128.56,8.80994492]
[1765888938376,9.18,128.57,128.56,8.80994492]
[1765888939510,9.18,128.57,128.55,8.80994492]
[1765888939511,0.66,128.56,128.55,8.80994492]
[1765888939677,3.45014458,128.56,128.55,8.80994492]
[1765888940001,3.45014458,128.56,128.54,8.80994492]
[1765888940976,3.45014458,128.55,128.54,8.80994492]
[1765888942105,0.66,128.54,128.51,69.681391]
[1765888942309,9.18,128.54,128.52,8.80994492]
[1765888943487,11.97014458,128.54,128.52,8.80994492]
[1765888943705,0.66,128.53,128.52,8.80994492]
[1765888944910,0.66,128.53,128.51,8.80994492]
[1765888945208,3.45014458,128.53,128.51,8.80994492]
[1765888945408,0.66,128.52,128.51,70.70994492]
[1765888946216,0.66,128.51,128.46,0.88]
[1765888946383,3.45014458,128.5,128.47,0.68]
[1765888946583,11.97014458,128.5,128.48,8.80994492]
[1765888947003,9.18,128.5,128.48,8.80994492]
[1765888947997,8.52,128.5,128.48,8.80994492]
[1765888948201,0.66,128.48,128.46,9.00994492]
[1765888948504,8.52,128.47,128.46,9.00994492]
[1765888949224,9.18,128.52,128.49,9.48994492]
[1765888949426,0.66,128.51,128.49,8.80994492]
[1765888949928,16.96105451,128.52,128.48,0.68]
[1765888950127,9.18,128.52,128.49,19.38279632]
[1765888950492,9.18,128.52,128.49,16.59265174]
[1765888951208,11.97014458,128.52,128.49,16.59265174]
[1765888951618,11.97014458,128.52,128.49,17.27265174]
[1765888953219,11.31014458,128.52,128.49,8.80994492]
[1765888953516,0.66,128.51,128.49,8.80994492]
[1765888953688,0.66,128.51,128.49,70.70994492]
[1765888954305,16.96106562,128.52,128.49,71.40994492]
[1765888954515,8.52,128.52,128.5,0.7]
[1765888955697,8.52,128.52,128.51,9.50994492]